bitfinex/quotes_SOLUSD_20251204
["timestamp","ask_amount","ask_price","bid_price","bid_amount"]
[1764809000682,0.67,144.42,144.41,6.9247282]
[1764809001283,0.67,144.42,144.4,6.92520775]
[1764809001784,0.67,144.42,144.4,10.94941892]
[1764809001991,0.67,144.42,144.4,6.92520775]
[1764809003389,0.67,144.42,144.39,10.94989854]
[1764809003785,0.67,144.42,144.39,28.92411697]
[1764809005307,0.67,144.42,144.41,6.9247282]
[1764809005497,7.66,144.44,144.41,10.94893937]
[1764809005704,7.66,144.44,144.42,4.02421117]
[1764809006009,8.33,144.44,144.42,4.02421117]
[1764809006603,8.33,144.44,144.43,6.9237693]
[1764809007310,8.33,144.47,144.43,11.60798047]
[1764809007508,8.33,144.47,144.44,4.02421117]
[1764809008097,8.33,144.47,144.45,4.02421117]
[1764809008708,7.66,144.47,144.46,10.94654261]
[1764809010102,0.67,144.5,144.46,11.60654261]
[1764809010415,8.33,144.5,144.47,4.02421117]
[1764809010803,0.67,144.49,144.47,4.02421117]
[1764809011004,7.66,144.5,144.48,4.02421117]
[1764809011213,8.33,144.5,144.48,4.02421117]
[1764809011422,7.66,144.5,144.48,4.02421117]
[1764809011790,7.66,144.5,144.49,4.02421117]
[1764809012022,0.67,144.52,144.49,10.94510534]
[1764809012227,0.67,144.51,144.49,10.94510534]
[1764809012793,11.68421117,144.5,144.45,10.94685941]
[1764809013092,0.67,144.49,144.46,6.92216778]
[1764809014316,0.67,144.49,144.46,10.94637895]
[1764809014525,0.67,144.49,144.46,17.60214479]
[1764809015512,0.67,144.49,144.46,6.92216778]
[1764809015814,0.67,144.49,144.46,17.60214479]
[1764809016644,0.67,144.49,144.46,6.92216778]
[1764809016834,18.27088932,144.49,144.44,10.67997701]
[1764809017037,18.27088932,144.49,144.44,17.60294149]
[1764809017259,0.67,144.48,144.45,6.92265352]
[1764809017442,7.64,144.47,144.45,17.60263053]
[1764809017842,7.64,144.47,144.46,6.92233144]
[1764809018346,8.31,144.47,144.45,17.60260878]
[1764809020451,8.31,144.47,144.45,10.67997701]
[1764809020452,7.64,144.47,144.45,10.67997701]
[1764809020853,8.31,144.47,144.45,10.67997701]
[1764809021739,7.64,144.47,144.45,10.67997701]
[1764809022864,7.64,144.47,144.46,6.92233144]
[1764809023437,17.018864,144.51,144.46,35.61813705]
[1764809023638,0.71,144.53,144.5,10.67997701]
[1764809023893,0.71,144.54,144.47,0.71]
[1764809024075,8.35,144.54,144.51,10.67997701]
[1764809024391,8.35,144.54,144.5,10.67997701]
[1764809024686,0.71,144.53,144.49,10.67997701]
[1764809024886,0.71,144.53,144.5,6.92041522]
[1764809025083,0.71,144.53,144.5,17.60039223]
[1764809025994,0.71,144.53,144.51,17.59983061]
[1764809026160,0.71,144.53,144.49,6.92073013]
[1764809026360,0.71,144.53,144.49,10.67997701]
[1764809026555,0.71,144.53,144.5,17.6000406]
[1764809026781,0.71,144.53,144.51,17.59978526]
[1764809027180,0.71,144.57,144.52,0.71]
[1764809027361,0.71,144.57,144.54,10.67997701]
[1764809028087,0.71,144.57,144.54,17.5981756]
[1764809028583,9.51994492,144.57,144.5,17.30070392]
[1764809028762,20.19992193,144.57,144.52,10.67997701]
[1764809029093,0.71,144.56,144.52,10.67997701]
[1764809029386,7.64,144.55,144.52,10.67997701]
[1764809029686,7.64,144.55,144.52,17.59936495]
[1764809029978,0.71,144.54,144.52,17.59936495]
[1764809030584,17.018864,144.54,144.5,10.67997701]
[1764809031099,0.71,144.53,144.5,10.67997701]
[1764809031477,0.71,144.53,144.5,17.60007353]
[1764809032793,7.64,144.52,144.5,17.60007353]
[1764809034015,8.35,144.52,144.5,17.60007353]
[1764809034713,0.71,144.51,144.5,6.92009652]
[1764809035012,0.71,144.51,144.48,17.60102085]
[1764809035209,7.64,144.52,144.5,17.60039223]
[1764809035380,8.35,144.52,144.51,10.67997701]
[1764809035581,7.64,144.52,144.51,10.67997701]
[1764809036405,7.64,144.52,144.51,4.02208004]
[1764809036806,7.64,144.52,144.51,10.94201637]
[1764809037183,0.71,144.54,144.51,10.94201637]
[1764809037379,16.308864,144.56,144.53,4.02208004]
[1764809037585,7.64,144.56,144.54,4.02208004]
[1764809037805,8.35,144.56,144.54,4.02208004]
[1764809038010,0.71,144.55,144.53,4.02208004]
[1764809038188,0.71,144.55,144.51,24.21977717]
[1764809038189,0.71,144.55,144.51,10.94201637]
[1764809038397,0.71,144.55,144.5,10.94248696]
[1764809038398,4.73208004,144.55,144.5,10.94248696]
[1764809038602,4.02208004,144.54,144.5,6.92040692]
[1764809038892,7.66,144.53,144.5,6.92040692]
[1764809039106,8.37,144.53,144.5,6.92040692]
[1764809039287,0.71,144.52,144.5,6.92040692]
[1764809039683,0.71,144.52,144.5,10.94248696]
[1764809040109,0.71,144.52,144.5,6.92040692]
[1764809040691,0.71,144.52,144.5,4.02208004]
[1764809042016,0.71,144.52,144.49,4.02208004]
[1764809042589,0.71,144.52,144.5,4.02208004]
[1764809042786,23.2273726,144.54,144.51,6.91993633]
[1764809042787,16.308864,144.54,144.51,6.91993633]
[1764809042983,7.64,144.56,144.53,4.02208004]
[1764809043293,7.66,144.58,144.55,4.02208004]
[1764809043627,7.66,144.58,144.56,4.02208004]
[1764809044113,8.37,144.58,144.56,4.02208004]
[1764809044301,8.37,144.58,144.55,4.02208004]
[1764809044513,8.37,144.58,144.56,4.02208004]
[1764809046210,0.71,144.57,144.54,10.94042146]
[1764809046415,0.71,144.57,144.54,6.91834142]
[1764809047421,0.71,144.57,144.54,2.57371795]
[1764809048424,0.71,144.57,144.54,3.28371795]
[1764809049036,0.71,144.57,144.55,6.91802144]
[1764809049522,0.71,144.57,144.55,9.49173939]
[1764809049699,8.80994492,144.61,144.55,9.49173939]
[1764809049896,0.71,144.63,144.56,24.658864]
[1764809050100,0.71,144.63,144.61,2.57371795]
[1764809050324,0.71,144.63,144.57,0.71]
[1764809050501,0.71,144.63,144.57,2.57371795]
[1764809050698,0.71,144.63,144.55,24.21307505]
[1764809050699,2.57371795,144.62,144.55,24.21307505]
[1764809050921,2.57371795,144.6,144.55,9.49173939]
[1764809051113,2.57371795,144.57,144.5,0.71]
[1764809051324,2.57371795,144.55,144.5,3.28371795]
[1764809051522,10.23371795,144.56,144.51,2.57371795]
[1764809051822,10.23371795,144.56,144.51,9.49354595]
[1764809051823,0.71,144.55,144.51,9.49354595]
[1764809052222,0.71,144.55,144.52,6.91931477]
[1764809053811,8.31,144.56,144.53,2.57371795]
[1764809054026,8.31,144.56,144.52,6.91931477]
[1764809054027,0.65,144.55,144.52,6.91931477]
[1764809054625,0.65,144.55,144.51,6.91987384]
[1764809055133,0.65,144.55,144.51,13.81514166]
[1764809056131,0.65,144.55,144.52,6.89526782]
[1764809056306,0.65,144.55,144.53,6.89526782]
[1764809056508,0.65,144.55,144.52,6.89526782]
[1764809057845,0.65,144.55,144.53,6.91897875]
[1764809058720,7.66,144.56,144.53,6.91897875]
[1764809058910,7.66,144.56,144.53,14.51424657]
[1764809059113,8.31,144.56,144.53,14.51424657]
[1764809059317,8.31,144.56,144.53,13.81424657]
[1764809059622,0.65,144.55,144.53,6.91897875]
[1764809059828,8.31,144.56,144.53,6.91897875]
[1764809060431,8.31,144.56,144.53,13.81424657]
[1764809061559,7.66,144.56,144.52,17.2975669]
[1764809061779,8.31,144.56,144.52,31.81229223]
[1764809062438,8.31,144.56,144.53,6.89526782]
[1764809063280,23.20413182,144.58,144.54,7.59526782]
[1764809063281,7.66,144.57,144.54,7.59526782]
[1764809063737,7.66,144.57,144.55,6.91802144]
[1764809064064,7.66,144.57,144.55,13.81328926]
[1764809064264,7.66,144.57,144.55,6.91802144]
[1764809064466,7.66,144.57,144.55,13.81328926]
[1764809064658,7.66,144.57,144.56,6.89526782]
[1764809064965,0.65,144.59,144.56,6.89526782]
[1764809065864,0.65,144.59,144.57,6.91706439]
[1764809066853,0.65,144.59,144.56,6.91754288]
[1764809067158,0.65,144.59,144.56,13.8128107]
[1764809067468,0.65,144.59,144.56,6.91754288]
[1764809068340,14.46141991,144.59,144.54,6.89526782]
[1764809068653,23.20413182,144.56,144.51,6.89526782]
[1764809068843,7.64,144.55,144.51,6.89526782]
[1764809069060,8.29,144.55,144.49,0.7]
[1764809069389,0.65,144.54,144.51,6.89526782]
[1764809069683,0.65,144.54,144.52,6.91933896]
[1764809070187,0.65,144.54,144.52,13.81460678]
[1764809071184,8.29,144.58,144.53,7.59526782]
[1764809071483,7.64,144.58,144.56,6.89526782]
[1764809071878,7.64,144.58,144.55,0.7]
[1764809072078,7.64,144.58,144.56,6.89526782]
[1764809073165,0.65,144.59,144.57,6.91706439]
[1764809073462,0.65,144.59,144.56,6.9174135]
[1764809073984,0.65,144.59,144.56,13.81268132]
[1764809076393,0.65,144.59,144.56,2.57292707]
[1764809076605,23.948864,144.61,144.57,2.57292707]
[1764809076775,0.65,144.59,144.57,2.57292707]
[1764809077996,0.65,144.59,144.56,2.57292707]
[1764809078588,0.65,144.59,144.57,6.91706439]
[1764809080084,0.65,144.59,144.57,9.48999146]
[1764809080413,24.638864,144.61,144.57,9.48999146]
[1764809080599,7.64,144.61,144.57,7.57706439]
[1764809080786,8.33,144.61,144.57,24.86972538]
[1764809080981,8.33,144.61,144.59,2.57292707]
[1764809081177,7.64,144.61,144.59,2.57292707]
[1764809081377,7.64,144.61,144.6,2.57292707]
[1764809081599,7.64,144.61,144.59,0.66]
[1764809081782,7.64,144.61,144.6,2.57292707]
[1764809082506,7.64,144.61,144.6,9.48855639]
[1764809082706,7.64,144.61,144.6,6.91562932]
[1764809083396,24.638864,144.63,144.6,9.48855639]
[1764809083596,0.68,144.62,144.6,9.48855639]
[1764809084305,0.68,144.62,144.58,26.78097797]
[1764809084607,0.68,144.62,144.59,2.57292707]
[1764809085389,0.68,144.62,144.59,9.48872603]
[1764809086307,30.86306901,144.63,144.59,27.44899506]
[1764809086308,23.948864,144.63,144.59,27.44899506]
[1764809086488,23.948864,144.63,144.59,24.20606799]
[1764809086689,0.68,144.62,144.6,2.57292707]
[1764809087391,8.32,144.63,144.6,2.57292707]
[1764809087726,0.68,144.62,144.6,2.57292707]
[1764809088408,0.68,144.62,144.6,9.48832344]
[1764809088985,0.68,144.62,144.59,2.57292707]
[1764809089200,7.59475194,144.62,144.58,2.57292707]
[1764809089509,7.59475194,144.62,144.58,6.91654889]
[1764809089712,7.59475194,144.62,144.57,9.4899174]
[1764809089713,0.68,144.61,144.57,9.4899174]
[1764809090012,0.68,144.61,144.55,2.57292707]
[1764809090013,10.21292707,144.6,144.55,2.57292707]
[1764809090218,7.64,144.6,144.56,2.57292707]
[1764809090390,0.68,144.59,144.56,2.57292707]
[1764809090590,0.68,144.59,144.57,6.9167952]
[1764809090890,7.64,144.6,144.57,9.48972227]
[1764809091094,8.32,144.6,144.57,9.48972227]
[1764809092520,8.32,144.6,144.58,2.57292707]
[1764809092702,8.32,144.6,144.58,9.4892872]
[1764809093926,8.32,144.6,144.57,9.48999146]
[1764809094907,0.68,144.59,144.56,9.49030581]
[1764809095420,0.68,144.59,144.56,9.49042554]
[1764809095622,0.68,144.59,144.55,9.49088816]
[1764809096207,0.68,144.59,144.56,2.57292707]
[1764809101231,0.68,144.59,144.56,6.91735055]
[1764809101428,0.68,144.59,144.56,9.49027762]
[1764809102627,0.68,144.59,144.57,2.57292707]
[1764809102813,7.64,144.6,144.57,9.48953009]
[1764809103017,7.64,144.6,144.57,10.15953009]
[1764809103221,7.64,144.6,144.57,9.48953009]
[1764809103420,0.68,144.59,144.57,9.48953009]
[1764809103818,7.64,144.6,144.58,2.57292707]
[1764809104036,3.11346473,144.64,144.59,2.57292707]
[1764809104333,7.64,144.63,144.61,2.57292707]
[1764809104535,8.32,144.63,144.59,0.67]
[1764809104837,8.32,144.63,144.6,2.57292707]
[1764809105225,8.32,144.63,144.61,9.48807816]
[1764809107842,3.25292707,144.62,144.54,0.67]
[1764809108048,12.06287199,144.61,144.57,2.57292707]
[1764809108344,12.06287199,144.61,144.56,10.93733729]
[1764809108345,7.64,144.6,144.56,10.93733729]
[1764809108543,12.33993254,144.6,144.55,10.93779641]
[1764809108746,0.68,144.59,144.55,4.01993254]
[1764809109043,0.68,144.59,144.56,10.93742356]
[1764809109346,0.68,144.59,144.57,4.01993254]
[1764809109641,0.68,144.59,144.55,0.67]
[1764809109642,0.68,144.59,144.56,6.91754288]
[1764809109826,0.68,144.59,144.57,4.01993254]
[1764809110024,0.68,144.59,144.56,6.91754288]
[1764809110259,0.68,144.59,144.56,4.01993254]
[1764809110425,23.90509685,144.59,144.52,17.29754715]
[1764809110626,23.90509685,144.59,144.55,4.01993254]
[1764809110856,0.68,144.58,144.54,6.91839905]
[1764809111024,0.68,144.58,144.52,4.01993254]
[1764809111025,11.65993254,144.57,144.52,4.01993254]
[1764809111345,11.65993254,144.57,144.53,10.93856412]
[1764809111346,0.68,144.56,144.53,10.93856412]
[1764809112128,7.64,144.57,144.54,0.67]
[1764809112322,7.64,144.57,144.54,4.01993254]
[1764809112554,0.69,144.56,144.53,28.23601101]
[1764809113236,0.69,144.56,144.53,24.21607847]
[1764809113750,0.69,144.56,144.53,28.23601101]
[1764809114542,0.69,144.56,144.53,6.91863158]
[1764809114743,4.70993254,144.56,144.51,21.31972035]
[1764809115250,0.69,144.55,144.51,21.31972035]
[1764809115641,0.69,144.55,144.52,6.9191869]
[1764809115848,0.69,144.56,144.52,11.65911944]
[1764809116849,0.69,144.56,144.53,4.01993254]
[1764809117154,0.69,144.56,144.52,24.93783068]
[1764809117355,0.69,144.56,144.53,4.01993254]
[1764809117558,0.69,144.56,144.54,6.91850006]
[1764809117862,0.69,144.56,144.52,4.01993254]
[1764809118157,11.62776025,144.56,144.52,6.91932662]
[1764809118328,7.64,144.57,144.54,4.01993254]
[1764809118730,8.33,144.57,144.53,11.65868804]
[1764809119143,8.33,144.57,144.53,28.95613493]
[1764809119554,0.69,144.56,144.53,28.95613493]
[1764809119739,11.62757101,144.56,144.52,6.91929955]
[1764809119959,4.01993254,144.55,144.52,6.91929955]
[1764809120262,11.65993254,144.54,144.52,6.91929955]
[1764809120436,12.34993254,144.54,144.52,6.91929955]
[1764809120637,8.33,144.54,144.52,6.91929955]
[1764809120944,8.33,144.54,144.51,6.91993633]
[1764809122072,7.64,144.54,144.52,0.72]
[1764809122275,7.64,144.54,144.52,4.73993254]
[1764809122575,7.64,144.54,144.51,28.23970971]
[1764809122780,8.33,144.54,144.51,28.23970971]
[1764809125258,8.33,144.54,144.51,24.21977717]
[1764809126168,8.33,144.54,144.51,28.95970971]
[1764809126971,7.64,144.54,144.52,0.72]
[1764809127266,7.64,144.54,144.52,4.73993254]
[1764809127461,7.64,144.54,144.53,6.91897875]
[1764809128272,8.33,144.54,144.52,6.91932184]
[1764809129571,7.64,144.54,144.53,0.72]
[1764809129770,23.948864,144.56,144.53,0.72]
[1764809129970,4.01993254,144.58,144.54,4.01993254]
[1764809129971,7.64,144.58,144.54,4.01993254]
[1764809130179,8.33,144.58,144.55,4.01993254]
[1764809130969,17.28592619,144.63,144.56,4.73993254]
[1764809131170,19.26471965,144.62,144.56,4.73993254]
[1764809131379,4.01993254,144.6,144.55,4.01993254]
[1764809131568,4.01993254,144.6,144.56,6.91754288]
[1764809131876,0.69,144.61,144.51,59.7184906]
[1764809131877,4.01993254,144.58,144.55,6.91791228]
[1764809132174,12.34993254,144.59,144.55,6.91791228]
[1764809132388,0.69,144.58,144.55,6.91791228]
[1764809133089,21.01879654,144.58,144.55,6.91791228]
[1764809133288,21.01879654,144.58,144.54,6.91844906]
[1764809133289,27.93539879,144.58,144.54,6.91844906]
[1764809133491,0.69,144.57,144.54,6.91844906]
[1764809134295,0.69,144.57,144.53,6.91897875]
[1764809134668,7.64,144.56,144.53,6.91897875]
[1764809135166,8.33,144.56,144.53,6.91897875]
[1764809135570,0.69,144.55,144.53,6.91897875]
[1764809137669,0.69,144.55,144.52,6.91945751]
[1764809137873,0.69,144.55,144.52,10.93939005]
[1764809138691,7.64,144.56,144.53,4.01993254]
[1764809139009,0.7,144.55,144.52,6.91945751]
[1764809145502,4.71993254,144.55,144.5,21.3203682]
[1764809145994,7.64,144.56,144.51,4.01993254]
[1764809146201,0.68,144.55,144.52,4.01993254]
[1764809146397,0.68,144.55,144.52,4.68993254]
[1764809146591,7.64,144.56,144.54,4.01993254]
[1764809146791,7.64,144.59,144.55,4.01993254]
[1764809146993,7.64,144.59,144.57,4.01993254]
[1764809147504,0.68,144.61,144.58,10.93651851]
[1764809147812,8.32,144.61,144.58,10.93651851]
[1764809148383,7.64,144.61,144.58,11.60651851]
[1764809148900,8.32,144.61,144.58,11.60651851]
[1764809149100,7.64,144.61,144.59,4.01993254]
[1764809149504,7.64,144.61,144.59,10.93579092]
[1764809150002,8.32,144.61,144.59,6.91585838]
[1764809153513,0.68,144.6,144.55,17.294461]
[1764809153693,0.68,144.6,144.55,6.91767593]
[1764809153694,4.01993254,144.59,144.55,6.91767593]
[1764809153892,7.64,144.58,144.55,6.91767593]
[1764809154096,0.68,144.57,144.55,6.91767593]
[1764809154600,0.68,144.57,144.54,10.9384326]
[1764809154914,7.64,144.58,144.54,11.6084326]
[1764809154915,8.32,144.58,144.54,11.6084326]
[1764809155612,0.68,144.57,144.54,11.6084326]
[1764809157697,0.68,144.57,144.54,7.58850006]
[1764809157898,0.68,144.57,144.54,6.91850006]
[1764809158294,0.68,144.57,144.53,10.93876946]
[1764809158519,0.68,144.57,144.53,6.91883692]
[1764809158520,4.69993254,144.57,144.53,6.91883692]
[1764809158818,11.61702197,144.57,144.53,6.91883692]
[1764809158993,0.68,144.56,144.53,6.91883692]
[1764809160610,0.68,144.56,144.53,10.93876946]
[1764809161516,0.68,144.56,144.53,6.91883692]
[1764809162002,7.59755121,144.56,144.52,10.93921381]
[1764809162205,11.61748375,144.56,144.51,10.93967831]
[1764809162503,8.32,144.55,144.51,10.93967831]
[1764809162996,0.68,144.54,144.51,6.91974577]
[1764809163197,0.68,144.54,144.51,10.93967831]
[1764809163719,0.68,144.54,144.51,6.91974577]
[1764809164098,0.68,144.54,144.51,10.93967831]
[1764809164715,0.68,144.54,144.51,6.91974577]
[1764809165297,0.68,144.58,144.53,4.01993254]
[1764809165534,0.68,144.59,144.55,4.01993254]
[1764809165705,11.61655577,144.58,144.54,6.91850006]
[1764809165905,8.32,144.57,144.54,6.91850006]
[1764809166328,0.68,144.56,144.54,6.91850006]
[1764809166516,0.68,144.56,144.53,6.9188565]
[1764809166701,4.69993254,144.56,144.52,6.91932166]
[1764809167101,0.68,144.55,144.52,6.91932166]
[1764809167318,7.64,144.54,144.52,6.91932166]
[1764809167715,0.68,144.53,144.51,6.91980222]
[1764809168015,8.32,144.54,144.51,6.91980222]
[1764809168331,0.68,144.53,144.51,6.91980222]
[1764809168629,8.32,144.54,144.51,10.16462974]
[1764809169423,7.64,144.54,144.51,7.58980222]
[1764809169726,7.64,144.54,144.51,10.16462974]
[1764809169918,8.32,144.54,144.51,7.58980222]
[1764809170116,7.64,144.54,144.51,6.91980222]
[1764809170344,0.68,144.53,144.5,2.57482752]
[1764809170531,0.68,144.53,144.5,3.24482752]
[1764809170837,0.68,144.53,144.49,2.57482752]
[1764809171130,0.68,144.53,144.49,3.24482752]
[1764809171635,0.68,144.53,144.49,2.57482752]
[1764809172021,0.68,144.53,144.48,24.2248062]
[1764809172345,7.59902371,144.53,144.49,9.49557647]
[1764809172822,0.67,144.52,144.49,9.49557647]
[1764809173532,0.67,144.52,144.49,6.92074895]
[1764809173735,0.67,144.52,144.49,9.49557647]
[1764809175013,7.64,144.51,144.47,9.49634645]
[1764809175221,7.64,144.51,144.48,2.57482752]
[1764809175621,7.64,144.51,144.49,6.92072424]
[1764809176036,0.67,144.5,144.47,2.57482752]
[1764809176844,0.67,144.5,144.47,9.49638375]
[1764809177422,0.67,144.5,144.47,6.92155623]
[1764809177719,0.67,144.5,144.47,9.49638375]
[1764809178324,7.64,144.51,144.48,2.57482752]
[1764809178521,0.67,144.54,144.5,2.57482752]
[1764809178722,7.64,144.53,144.51,2.57482752]
[1764809179717,7.64,144.53,144.5,2.57482752]
[1764809179916,7.64,144.53,144.49,9.49566627]
[1764809179917,0.67,144.52,144.49,9.49566627]
[1764809180119,3.24482752,144.52,144.46,0.66]
[1764809180318,2.57482752,144.49,144.44,0.66]
[1764809180637,8.31,144.48,144.44,2.57482752]
[1764809180830,8.31,144.48,144.44,3.23482752]
[1764809181024,7.64,144.48,144.45,2.57482752]
[1764809181225,7.64,144.48,144.44,2.57482752]
[1764809181624,8.31,144.48,144.44,10.15799902]
[1764809182151,0.67,144.47,144.43,9.49858992]
[1764809182339,0.67,144.47,144.42,9.4989981]
[1764809182340,3.24482752,144.47,144.42,9.4989981]
[1764809182643,0.67,144.47,144.42,9.4989981]
[1764809182850,0.67,144.46,144.43,6.92373961]
[1764809183534,14.56165383,144.48,144.44,9.49783959]
[1764809183731,0.67,144.47,144.43,6.92375076]
[1764809184133,3.24482752,144.47,144.43,6.92375076]
[1764809184549,0.67,144.46,144.43,6.92375076]
[1764809184851,10.21482752,144.45,144.4,9.49967096]
[1764809185360,3.24482752,144.44,144.39,9.50035797]
[1764809185528,9.49859682,144.43,144.38,6.92604852]
[1764809185725,7.64,144.42,144.37,10.16135834]
[1764809185950,7.64,144.42,144.37,7.58653082]
[1764809185951,10.21482752,144.42,144.37,7.58653082]
[1764809186245,3.24482752,144.41,144.37,0.66]
[1764809186454,0.67,144.41,144.37,3.23482752]
[1764809187340,3.24482752,144.41,144.37,6.92652693]
[1764809187741,0.67,144.4,144.37,6.92652693]
[1764809188136,0.67,144.4,144.37,10.16135445]
[1764809188464,17.80954892,144.42,144.37,10.16135445]
[1764809188636,7.64,144.42,144.38,3.23482752]
[1764809188960,8.31,144.42,144.38,3.23482752]
[1764809189160,7.64,144.42,144.38,3.23482752]
[1764809189363,0.67,144.41,144.38,3.23482752]
[1764809189565,0.67,144.41,144.37,6.92652693]
[1764809189735,0.67,144.41,144.37,0.66]
[1764809189936,0.67,144.41,144.37,3.23482752]
[1764809190144,0.67,144.41,144.37,0.66]
[1764809190347,0.67,144.41,144.37,3.23482752]
[1764809190753,0.67,144.41,144.38,6.92598572]
[1764809190956,7.59477253,144.41,144.37,10.16134429]
[1764809191262,0.67,144.41,144.37,10.16134429]
[1764809192055,7.64,144.42,144.38,2.57482752]
[1764809192366,7.64,144.42,144.39,2.57482752]
[1764809192549,8.31,144.42,144.39,2.57482752]
[1764809192746,8.31,144.42,144.38,3.23482752]
[1764809192950,8.31,144.42,144.39,6.92568737]
[1764809194871,0.67,144.41,144.39,6.92568737]
[1764809195466,8.31,144.42,144.39,6.92568737]
[1764809196344,16.308864,144.43,144.39,6.92568737]
[1764809196549,7.64,144.43,144.4,3.23482752]
[1764809196745,7.64,144.43,144.41,2.57482752]
[1764809196956,7.64,144.43,144.41,3.23482752]
[1764809197476,7.64,144.43,144.41,10.15912966]
[1764809198772,7.64,144.43,144.42,9.49907623]
[1764809199873,7.64,144.46,144.42,27.48969802]
[1764809200177,7.64,144.46,144.43,2.57482752]
[1764809200381,8.3,144.46,144.43,2.57482752]
[1764809200674,7.64,144.46,144.42,26.80969802]
[1764809200871,0.66,144.45,144.42,9.49907623]
[1764809201074,0.66,144.45,144.41,9.49938951]
[1764809201771,0.66,144.45,144.42,6.92422852]
[1764809201975,8.3,144.46,144.42,10.17905604]
[1764809202362,8.36,144.46,144.42,10.17905604]
[1764809202563,7.64,144.46,144.42,10.17905604]
[1764809202775,8.36,144.46,144.43,2.57482752]
[1764809203164,8.36,144.46,144.43,9.49836978]
[1764809203858,7.64,144.46,144.43,9.49836978]
[1764809204207,0.72,144.45,144.38,16.308864]
[1764809204483,3.29482752,144.45,144.4,3.22482752]
[1764809205068,0.72,144.44,144.4,2.57482752]
[1764809205249,7.64,144.43,144.38,17.31510374]
[1764809205451,2.57482752,144.41,144.37,6.92651873]
[1764809205672,7.64,144.4,144.37,6.92651873]
[1764809205878,8.36,144.4,144.37,6.92651873]
[1764809206077,0.72,144.39,144.36,6.92711118]
[1764809206380,2.57482752,144.38,144.34,7.12802203]
[1764809206579,7.64,144.37,144.34,7.12802203]
[1764809206791,8.36,144.37,144.34,7.12802203]
[1764809207278,0.72,144.36,144.34,7.12802203]
[1764809207984,0.72,144.36,144.34,0.2]
[1764809208168,7.64,144.37,144.34,9.70261041]
[1764809208368,8.36,144.37,144.34,9.70261041]
[1764809208673,7.64,144.37,144.35,2.57482752]
[1764809209083,7.64,144.37,144.34,27.67282656]
[1764809209487,8.36,144.37,144.34,27.02282656]
[1764809209790,0.72,144.36,144.34,0.2]
[1764809210166,7.64,144.37,144.34,7.12779179]
[1764809210365,8.36,144.37,144.34,9.70261931]
[1764809210566,7.64,144.37,144.34,9.70261931]
[1764809210792,7.64,144.37,144.34,10.35261931]
[1764809210964,8.36,144.37,144.34,9.70261931]
[1764809211599,0.72,144.36,144.34,7.12779179]
[1764809211801,7.64,144.37,144.34,9.70261931]
[1764809211802,8.36,144.37,144.34,9.70261931]
[1764809212582,8.36,144.37,144.34,7.12779179]
[1764809212799,7.64,144.37,144.34,9.70261931]
[1764809212979,7.64,144.37,144.34,10.35261931]
[1764809213897,7.64,144.37,144.34,27.67283546]
[1764809214294,7.64,144.37,144.35,0.65]
[1764809214501,7.64,144.37,144.35,3.22482752]
[1764809214696,7.64,144.37,144.36,2.57482752]
[1764809214897,7.64,144.37,144.36,3.22482752]
[1764809215094,7.64,144.4,144.36,3.22482752]
[1764809215413,8.36,144.4,144.36,3.22482752]
[1764809215703,8.36,144.4,144.37,9.50147433]
[1764809216379,8.36,144.4,144.37,6.92664681]
[1764809216581,7.64,144.4,144.37,26.81809135]
[1764809216799,7.64,144.42,144.39,2.57482752]
[1764809217214,7.64,144.42,144.39,3.22482752]
[1764809217790,7.64,144.42,144.4,6.92520775]
[1764809218186,7.64,144.42,144.4,9.50003527]
[1764809218187,8.36,144.42,144.4,9.50003527]
[1764809218409,7.64,144.42,144.4,10.15003527]